fUST/lending_fUST_20240527
["ID","MTS","AMOUNT","RATE_DAILY","PERIOD"]
[328035228,1716801046652,-500.0,0.00020908,2]
[328035229,1716801046661,-500.0,0.00020908,2]
[328035230,1716801046670,-500.0,0.00020908,2]
[328035231,1716801046679,-500.0,0.00020908,2]
[328035232,1716801046688,-500.0,0.00020908,2]
[328035233,1716801046697,-500.0,0.00020908,2]
[328035234,1716801046706,-500.0,0.00020908,2]
[328035235,1716801046716,-500.0,0.00020908,2]
[328035236,1716801046725,-500.0,0.00020908,2]
[328035237,1716801046830,-500.0,0.00020908,2]
[328035238,1716801046840,-500.0,0.00020908,2]
[328035239,1716801046850,-500.0,0.00020908,2]
[328035240,1716801046859,-500.0,0.00020908,2]
[328035241,1716801046869,-272.91950889,0.00021015,2]
[328035242,1716801046878,-3000.0,0.000215,2]
[328035243,1716801046887,-3000.0,0.0002151,2]
[328035244,1716801046897,-3000.0,0.0002152,2]
[328035245,1716801046906,-3000.0,0.0002153,2]
[328035246,1716801046915,-3000.0,0.0002154,2]
[328035247,1716801046925,-3000.0,0.0002155,2]
[328035248,1716801046935,-3000.0,0.0002156,2]
[328035249,1716801046944,-2392.09863807,0.0002157,2]
[328035250,1716801046957,-607.90136193,0.0002157,2]
[328035251,1716801046967,-3000.0,0.0002158,2]
[328035252,1716801046976,-2505.06743541,0.0002159,2]
[328035253,1716801046987,-494.93256459,0.0002159,2]
[328035254,1716801046996,-1386.64899059,0.000216,2]
[328035255,1716801047007,-1613.35100941,0.000216,2]
[328035256,1716801047016,-3000.0,0.0002161,2]
[328035257,1716801047026,-3000.0,0.0002162,2]
[328035258,1716801047035,-151.0,0.0002162,2]
[328035259,1716801047044,-769.230475,0.0002162,2]
[328035260,1716801047053,-769.230475,0.0002162,2]
[328035261,1716801047063,-156.5200847,0.00021629,2]
[328035262,1716801047072,-3449.280031,0.0002163,2]
[328035263,1716801047081,-1572.21570954,0.0002163,2]
[328035264,1716801047093,-1000.68429046,0.0002163,2]
[328035265,1716801047102,-2572.9,0.0002163,2]
[328035266,1716801047111,-272.91950889,0.00024078,2]
[328035267,1716801047120,-290.25616,0.00024384,2]
[328035268,1716801047130,-643.03125,0.00024384,2]
[328035269,1716801047140,-1286.01424859,0.00025,2]
[328035270,1716801047153,-3907.57903508,0.00025,2]
[328035271,1716801047162,-500.0,0.00025428,2]
[328035272,1716801047171,-753.42096492,0.00026082,2]
[328035328,1716802238340,-524.43466535,9.8e-05,2]
[328035329,1716802238351,-524.43466535,9.999e-05,2]
[328035331,1716802238361,-9.9936683,0.00011476,2]
[328035337,1716802238411,-6712.3281058,0.00011476,2]
[328035339,1716802238421,-3393.97552549,0.00011927,2]
[328035379,1716802243538,-6191.24372,0.00011927,2]
[328035380,1716802244289,-5414.78075451,0.00011927,2]
[328035383,1716802244300,-181.20487303,0.00011928,2]
[328035385,1716802244311,-12162.61836107,0.00011928,2]
[328035387,1716802244321,-8594.0497152,0.00012395,2]
[328035389,1716802244330,-163.75170535,0.0001607,2]
[328035391,1716802244339,-187.4878752,0.00016171,2]
[328035393,1716802244348,-151.0,0.00018024,3]
[328035394,1716802244357,-527.82833493,0.0002,4]
[328035396,1716802244367,-163.75170533,0.00020366,2]
[328035397,1716802244376,-604.17,0.0002099,3]
[328035398,1716802244385,-420.0,0.00020999,2]
[328035399,1716802244395,-239.28829617,0.00020999,2]
[328035400,1716802244404,-500.0,0.00020999,2]
[328035401,1716802244415,-382.07763527,0.00020999,2]
[328035402,1716802244424,-500.0,0.00020999,2]
[328035403,1716802244434,-500.0,0.00020999,2]
[328035404,1716802244444,-500.0,0.00020999,2]
[328035405,1716802244454,-500.0,0.00020999,2]
[328035406,1716802244464,-500.0,0.00020999,2]
[328035407,1716802244474,-500.0,0.00020999,2]
[328035408,1716802244484,-500.0,0.00020999,2]
[328035409,1716802244495,-505.42308953,0.00020999,2]
[328035410,1716802244505,-500.0,0.00020999,2]
[328035411,1716802244516,-500.0,0.00020999,2]
[328035412,1716802244526,-500.0,0.00020999,2]
[328035413,1716802244541,-500.0,0.00020999,2]
[328035414,1716802244552,-500.0,0.00020999,2]
[328035415,1716802244562,-410.22558573,0.00020999,2]
[328035430,1716802300579,10234.96829707,0.000275,30]
[328035467,1716803432698,-179.14697753,9.309e-05,2]
[328035469,1716803432708,-179.14697753,9.31e-05,2]
[328035471,1716803432717,-164.30390821,9.999e-05,2]
[328035472,1716803432726,-250.0,0.00013663,2]
[328035474,1716803432735,-5727.40213673,0.00016212,2]
[328035698,1716803438684,-273.37336231,9.9e-05,2]
[328035700,1716803438694,-3060.41805964,0.00016211,2]
[328035724,1716803442167,-5022.14158552,0.00016211,2]
[328035725,1716803442179,-1487.69513062,0.00016211,2]
[328035726,1716803442189,-13543.71015104,0.00016212,2]
[328035727,1716803442199,-1150.27698221,0.00016219,2]
[328035728,1716803442210,-697.33,0.00016219,2]
[328035747,1716803614350,3127.82184822,0.00018937,7]
[328035748,1716803671064,1563.91092411,0.00018937,7]
[328035749,1716803734034,781.95546206,0.00018937,7]
[328035750,1716803850846,160.0,0.0002,5]
[328035756,1716804335091,390.97773103,0.00018937,7]
[328035786,1716804632009,-154.9690062,9.135e-05,2]
[328035787,1716804632020,-179.14697753,9.137e-05,2]
[328035788,1716804632029,-392.16366778,9.139e-05,2]
[328035789,1716804632042,-132.27099757,9.139e-05,2]
[328035790,1716804632051,-565.09900243,9.236e-05,2]
[328035791,1716804632062,-545.87563572,9.236e-05,2]
[328035864,1716804641879,-4425.26937813,9.143e-05,2]
[328035866,1716804641889,-6116.11655936,9.236e-05,2]
[328035869,1716804644286,-3834.39865346,9.236e-05,2]
[328035870,1716804644303,-8209.6224368,9.236e-05,2]
[328035871,1716804644312,-5439.2698063,9.237e-05,2]
[328035872,1716804644321,-1962.3036792,9.899e-05,2]
[328035873,1716804644330,-13963.2422948,0.00010524,2]
[328035874,1716804644339,-155.53793537,0.00015719,2]
[328035875,1716804644349,-163.75170533,0.00015819,2]
[328035876,1716804644358,-3621.29626212,0.00016152,2]
[328035877,1716804644368,-365.31563437,0.00018937,2]
[328035879,1716804644379,-224.73843168,0.00018937,2]
[328035881,1716804644388,-3376.24664759,0.00018937,2]
[328035883,1716804644398,-847.24717221,0.00018938,2]
[328035916,1716804646023,-927.20229121,0.00018938,2]
[328035917,1716804671137,500.0,0.000265,120]
[328035918,1716804671882,500.0,0.000265,120]
[328035919,1716804672661,500.0,0.000265,120]
[328035920,1716804673430,500.0,0.000265,120]
[328035921,1716804674190,500.0,0.000265,120]
[328035922,1716804674982,521.39,0.000265,120]
[328035924,1716804869462,500.0,0.000265,120]
[328035925,1716804870623,500.0,0.000265,120]
[328035926,1716804871601,500.0,0.000265,120]
[328035927,1716804872175,500.0,0.000265,120]
[328035928,1716804872943,500.0,0.000265,120]
[328035929,1716804874054,500.0,0.000265,120]
[328035930,1716804874832,500.0,0.000265,120]
[328035931,1716804875677,500.0,0.000265,120]
[328035932,1716804876434,500.0,0.000265,120]
[328035933,1716804877200,500.0,0.000265,120]
[328035934,1716804878111,500.0,0.000265,120]
[328035935,1716804878703,500.0,0.000265,120]
[328035936,1716804879457,500.0,0.000265,120]
[328035937,1716804880216,500.0,0.000265,120]
[328035938,1716804881071,500.0,0.000265,120]
[328035939,1716804882191,348.64,0.000265,120]
[328035950,1716805035420,160.0,0.0002,5]
[328035951,1716805059483,235.3,0.0002,10]
[328035988,1716805832191,-365.62120388,0.00018937,2]
[328035991,1716805832201,-19271.11228777,0.00019999,2]
[328035994,1716805832210,-3376.24664759,0.0002,2]
[328035997,1716805832219,-224.73843168,0.0002,2]
[328036000,1716805832228,-527.82833493,0.00020913,4]
[328036002,1716805832237,-281.81267794,0.00020998,2]
[328036005,1716805832247,-156.04917913,0.00020998,2]
[328036008,1716805832257,-154.97857721,0.00020999,2]
[328036010,1716805832267,-150.0,0.000215,2]
[328036012,1716805832276,-330.64080539,0.00021628,2]
[328036014,1716805832285,-166.666666,0.00021918,2]
[328036016,1716805832294,-166.666666,0.00022559,2]
[328036018,1716805832303,-923.46536751,0.00022626,2]
[328036019,1716805832313,-500.0,0.00022688,2]
[328036021,1716805832322,-1000.0,0.00023,8]
[328036023,1716805832331,-151.0,0.00023,2]
[328036025,1716805832340,-4697.73031858,0.00023,2]
[328036027,1716805832349,-166.666666,0.000232,2]
[328036029,1716805832358,-354.2,0.00023807,3]
[328036031,1716805832368,-692.307428,0.00023814,2]
[328036033,1716805832377,-2315.61,0.00023814,2]
[328036035,1716805832387,-856.01418577,0.00023814,2]
[328036181,1716805838062,-1459.59581423,0.00023814,2]
[328036182,1716805838072,-180.0,0.00023816,2]
[328036183,1716805838082,-500.0,0.00023816,2]
[328036184,1716805838092,-500.0,0.00023816,2]
[328036185,1716805838102,-500.0,0.00023816,2]
[328036186,1716805838111,-500.0,0.00023816,2]
[328036187,1716805838121,-500.0,0.00023816,2]
[328036188,1716805838131,-500.0,0.00023816,2]
[328036189,1716805838140,-388.48581002,0.00023816,2]
[328036234,1716805846415,-527.82833493,0.00023815,4]
[328036235,1716805846424,-2699.32279097,0.00023815,2]
[328036236,1716805846434,-111.51418998,0.00023816,2]
[328036237,1716805846443,-500.0,0.00023816,2]
[328036238,1716805846453,-500.0,0.00023816,2]
[328036239,1716805846463,-500.0,0.00023816,2]
[328036240,1716805846471,-500.0,0.00023816,2]
[328036241,1716805846481,-531.10047103,0.00023816,2]
[328036242,1716805846490,-500.0,0.00023816,2]
[328036243,1716805846499,-500.0,0.00023816,2]
[328036244,1716805846508,-8987.66098887,0.00023817,7]
[328036245,1716805846518,-648.13975088,0.00023817,2]
[328036246,1716805846527,-3456.47650586,0.00023817,2]
[328036247,1716805846536,-11268.74724182,0.00023817,2]
[328036248,1716806019658,3000.0,0.0002,5]
[328036252,1716806434887,4493.83049443,0.00019119,7]
[328036254,1716806493890,2246.91524721,0.0002,7]
[328036255,1716806551058,1123.45762361,0.0002,7]
[328036256,1716806611162,561.72881181,0.0002,7]
[328036257,1716806674386,280.8644059,0.0002,7]
[328036259,1716806734841,280.8644059,0.0002,7]
[328036260,1716806735475,-164.30390821,9.947e-05,2]
[328036261,1716806735496,-1315.46781453,9.947e-05,2]
[328036262,1716806735517,-2109.54099947,9.948e-05,2]
[328036263,1716806735536,-524.43466535,9.949e-05,2]
[328036264,1716806735555,-2681.89337139,9.949e-05,2]
[328036265,1716806735575,-1979.63054003,9.95e-05,2]
[328036266,1716806735596,-181.63857615,9.95e-05,2]
[328036267,1716806735615,-962.56293886,9.951e-05,2]
[328036268,1716806735635,-80.52718601,9.989e-05,2]
[328036272,1716806813214,-962.56293886,9.946e-05,2]
[328036273,1716806813235,-1417.7053727,9.989e-05,2]
[328036274,1716806813254,-224.73843168,9.989e-05,2]
[328036275,1716806813273,-3376.24664759,9.989e-05,2]
[328036276,1716806813294,-10018.74660917,0.0001,2]
[328036445,1716807039730,-1583.26443295,9.988e-05,2]
[328036446,1716807039740,-359.2836877,9.989e-05,2]
[328036447,1716807039751,-2526.43993966,9.999e-05,2]
[328036448,1716807039761,-563.70291839,0.0001,2]
[328036475,1716807042452,-6849.23890006,0.0001,2]
[328036478,1716807042464,-3376.24664759,0.0001,2]
[328036480,1716807042473,-155.21479135,0.0001,2]
[328036481,1716807042482,-255.3580576,0.00010149,2]
[328036482,1716807042492,-19271.11228777,0.00010656,2]
[328036483,1716807042502,-24890.0,0.00010657,2]
[328036484,1716807042511,-1349.0268669,0.00010923,2]
[328036485,1716807042520,-163.75170533,0.000129,2]
[328036486,1716807042531,-166.50764849,0.00013558,2]
[328036487,1716807042540,-4734.5631798,0.00013699,2]
[328036488,1716807042549,-399.3819498,0.00013699,2]
[328036489,1716807042558,-181.434752,0.00013699,2]
[328036490,1716807042567,-291.77473267,0.00017861,2]
[328036491,1716807042577,-166.50764849,0.00018637,2]
[328036492,1716807042586,-1315.46781453,0.00019999,2]
[328036493,1716807042595,-2141.14750707,0.0002,2]
[328036494,1716807042605,-527.82833493,0.0002,4]
[328036495,1716807042614,-1498.23255871,0.00020903,2]
[328036496,1716807042623,-1911.07505716,0.00020904,2]
[328036497,1716807042635,-172.97394284,0.00020904,2]
[328036498,1716807042645,-1200.33933596,0.00020904,2]
[328036548,1716807046599,-883.70966404,0.00020904,2]
[328036550,1716807046608,-491.83,0.00020904,3]
[328036552,1716807046617,-500.0,0.00020913,2]
[328036554,1716807046626,-500.0,0.00020913,2]
[328036555,1716807046635,-500.0,0.00020913,2]
[328036558,1716807046645,-609.33014131,0.00020913,2]
[328036559,1716807046654,-221.739,0.00020913,2]
[328036561,1716807046663,-657.692056,0.00020913,2]
[328036563,1716807046672,-657.692056,0.00020913,2]
[328036565,1716807046681,-155.959065,0.00021918,2]
[328036566,1716807046691,-166.666666,0.00021918,2]
[328036567,1716807046701,-500.0,0.0002252,2]
[328036568,1716807046709,-500.0,0.0002252,2]
[328036569,1716807046719,-1000.0,0.00023,8]
[328036570,1716807046728,-13706.58728214,0.00023098,2]
[328036623,1716808232747,-1340.40220178,9.988e-05,2]
[328036624,1716808232758,-2109.54099947,9.989e-05,2]
[328036625,1716808232767,-181.63857615,9.998e-05,2]
[328036626,1716808232778,-164.30390821,9.999e-05,2]
[328036627,1716808232787,-844.37818384,9.999e-05,2]
[328036628,1716808232800,-650.26151516,9.999e-05,2]
[328036665,1716808238725,-2263.99752876,9.999e-05,2]
[328036667,1716808238737,-845.19586907,9.999e-05,2]
[328036669,1716808238750,-1436.6360922,9.999e-05,2]
[328036671,1716808238761,-981.81720048,9.999e-05,2]
[328036701,1716808242261,-1955.31525145,9.999e-05,2]
[328036702,1716808242273,-10293.51064681,9.999e-05,2]
[328036703,1716808242283,-2090.26650338,0.0001,2]
[328036705,1716808242292,-685.35873137,0.00011432,2]
[328036706,1716808242301,-17982.6025933,0.00011433,2]
[328036707,1716808242311,-166.5076485,0.00012923,2]
[328036708,1716808242320,-10375.5293237,0.00013023,2]
[328036709,1716808242329,-188.03544,0.00013699,2]
[328036710,1716808242339,-283.93262645,0.000137,2]
[328036711,1716808242348,-413.92113794,0.000209,2]
[328036712,1716808242358,-166.666666,0.00021918,2]
[328036713,1716808242367,-500.0,0.00022447,2]
[328036714,1716808242377,-4120.36515614,0.00022906,2]
[328036715,1716808242387,-7051.52766207,0.00023,2]
[328036716,1716808242396,-659.53,0.00023087,3]
[328036717,1716808242405,-219.83,0.00023088,3]
[328036718,1716808242414,-632.79904239,0.00023097,2]
[328036719,1716808242423,-5321.79816104,0.00023098,2]
[328036893,1716809438269,-685.35873137,9.688e-05,2]
[328036895,1716809438279,-164.30390821,9.689e-05,2]
[328036896,1716809438290,-150.17122765,9.689e-05,2]
[328036897,1716809438303,-1959.36977182,9.689e-05,2]
[328036898,1716809438312,-546.74672462,9.691e-05,2]
[328036899,1716809438322,-2739.8678449,0.00020162,2]
[328036926,1716809443459,-883.496942,0.00020161,2]
[328037821,1716809459909,1200.0,0.000275,30]
[328037822,1716809512348,14400.02900761,0.0002,5]
[328037874,1716810631991,-164.30390821,8.71e-05,2]
[328037876,1716810632002,-160.57383811,8.711e-05,2]
[328037878,1716810632014,-1819.05670192,8.711e-05,2]
[328037879,1716810632024,-685.35873137,8.712e-05,2]
[328037880,1716810632033,-2109.54099947,8.799e-05,2]
[328037881,1716810632042,-685.35873137,8.8e-05,2]
[328037882,1716810632052,-1962.68226772,9.492e-05,2]
[328037883,1716810632064,-1391.97640655,9.492e-05,2]
[328037884,1716810632084,-377.1,9.492e-05,2]
[328037934,1716810638756,-685.35873137,8.709e-05,2]
[328037935,1716810638767,-312.34202671,9.492e-05,2]
[328037936,1716810638778,-4650.89757621,9.492e-05,2]
[328037937,1716810638790,-10576.11401058,9.492e-05,2]
[328037938,1716810638799,-8631.9400988,9.493e-05,2]
[328037939,1716810638808,-1191.9764066,9.753e-05,2]
[328037940,1716810638818,-169.96167029,9.753e-05,2]
[328037941,1716810638827,-793.86,0.00010959,2]
[328037942,1716810638837,-330.64080539,0.00012009,2]
[328037943,1716810638847,-15000.0,0.0001201,2]
[328037944,1716810638856,-59460.83956525,0.00012011,2]
[328037945,1716810638865,-3298.2110395,0.00013699,2]
[328037946,1716810638874,-283.93262645,0.000137,2]
[328037947,1716810638884,-923.46536751,0.00014,2]
[328037948,1716810638893,-169.96167029,0.000149,2]
[328037949,1716810638904,-251.87850636,0.000149,2]
[328037950,1716810638913,-251.87850635,0.000149,2]
[328037951,1716810638922,-251.87850635,0.000149,2]
[328037952,1716810638931,-45292.43041254,0.00015,2]
[328037953,1716810638943,-11048.29585085,0.00015,2]
[328037989,1716810640988,-7973.03347661,0.00015,2]
[328037990,1716810641055,-6774.90985997,0.00015,2]
[328038046,1716810643321,-632.50000025,0.00015,2]
[328038314,1716810646139,-2109.54099947,0.00014999,2]
[328038316,1716810646150,-8278.83039978,0.00015,2]
[328038318,1716810646160,-2034.225309,0.00015,2]
[328038320,1716810646169,-2034.225309,0.00015,2]
[328038321,1716810646179,-626.538222,0.00015,2]
[328038323,1716810646188,-626.538222,0.00015,2]
[328038324,1716810646199,-151.0,0.00015,2]
[328038326,1716810646213,-626.538222,0.00016438,2]
[328038328,1716810646222,-626.538222,0.00016438,2]
[328038329,1716810646232,-1989.710988,0.00016438,2]
[328038331,1716810646242,-1989.710988,0.00016438,2]
[328038333,1716810646253,-1989.710988,0.00016438,2]
[328038334,1716810646262,-1989.710988,0.00016438,2]
[328038336,1716810646272,-188.0354416,0.00017661,2]
[328038338,1716810646282,-271.1995896,0.00019178,2]
[328038339,1716810646291,-2034.225309,0.00019178,2]
[328038341,1716810646301,-2034.225309,0.00019178,2]
[328038343,1716810646310,-626.538222,0.00019778,2]
[328038344,1716810646321,-626.538222,0.00019778,2]
[328038346,1716810646330,-1989.710988,0.00019778,2]
[328038348,1716810646339,-1989.710988,0.00019778,2]
[328038350,1716810646349,-150.0,0.00019815,2]
[328038352,1716810646359,-3822.73438145,0.0001993,2]
[328038354,1716810646367,-2034.225309,0.00020159,2]
[328038356,1716810646376,-2034.225309,0.00020159,2]
[328038358,1716810646386,-2599.89847911,0.0002016,2]
[328038359,1716810646395,-772.8946628,0.0002016,2]
[328038360,1716810646404,-3065.00544058,0.0002016,2]
[328038361,1716810646414,-2034.225309,0.0002016,2]
[328038362,1716810646423,-2034.225309,0.0002016,2]
[328038363,1716810646432,-626.538222,0.0002016,2]
[328038364,1716810646441,-626.538222,0.0002016,2]
[328038365,1716810646450,-626.538222,0.0002016,2]
[328038366,1716810646459,-626.538222,0.0002016,2]
[328038367,1716810646468,-1989.710988,0.0002016,2]
[328038368,1716810646477,-1989.710988,0.0002016,2]
[328038369,1716810646486,-1989.710988,0.0002016,2]
[328038370,1716810646495,-1989.710988,0.0002016,2]
[328038371,1716810646504,-224.70364529,0.00020161,2]
[328038372,1716810646513,-10000.0,0.00021,5]
[328038373,1716810646522,-2034.225309,0.00021,2]
[328038374,1716810646531,-2034.225309,0.00021,2]
[328038375,1716810646539,-626.538222,0.00021,2]
[328038376,1716810646548,-626.538222,0.00021,2]
[328038377,1716810646557,-626.538222,0.00021,2]
[328038378,1716810646566,-626.538222,0.00021,2]
[328038379,1716810646575,-1989.710988,0.00021,2]
[328038381,1716810646584,-1989.710988,0.00021,2]
[328038382,1716810646593,-1675.77747722,0.00021,2]
[328038383,1716810646605,-313.93351078,0.00021,2]
[328038385,1716810646614,-1989.710988,0.00021,2]
[328038387,1716810646623,-166.666666,0.00021918,2]
[328038389,1716810646632,-2034.225309,0.00022837,2]
[328038391,1716810646641,-2034.225309,0.00022837,2]
[328038393,1716810646651,-626.538222,0.00022837,2]
[328038395,1716810646662,-626.538222,0.00022837,2]
[328038397,1716810646672,-1989.710988,0.00022837,2]
[328038399,1716810646681,-1989.710988,0.00022837,2]
[328038401,1716810646690,-2000.0,0.000229,2]
[328038403,1716810646699,-1291.13979722,0.00022999,5]
[328039481,1716811832322,-371.68408208,9.912e-05,2]
[328039482,1716811832331,-1044.43060742,9.913e-05,2]
[328039484,1716811832341,-164.30390821,9.913e-05,2]
[328039486,1716811832350,-685.35873137,9.913e-05,2]
[328039489,1716811832370,-281.85841065,9.914e-05,2]
[328039491,1716811832381,-488.43267025,9.914e-05,2]
[328039492,1716811832391,-1498.23255871,9.914e-05,2]
[328039493,1716811832401,-156.58808866,9.915e-05,2]
[328039494,1716811832411,-1979.63054003,9.915e-05,2]
[328039496,1716811832421,-1340.40220178,9.915e-05,2]
[328039498,1716811832431,-836.46602351,9.916e-05,2]
[328039500,1716811832440,-2109.54099947,9.916e-05,2]
[328039502,1716811832450,-30472.66652975,9.917e-05,2]
[328039563,1716811838475,-181.63857615,9.912e-05,2]
[328039565,1716811838485,-8766.74567128,9.917e-05,2]
[328039567,1716811838517,-1060.88870555,9.917e-05,2]
[328039831,1716811841442,-3261.15788286,9.917e-05,2]
[328039833,1716811841454,-15899.38077581,9.917e-05,2]
[328039835,1716811841463,-2551.36351302,9.918e-05,2]
[328039837,1716811841476,-16719.74877475,9.918e-05,2]
[328039838,1716811841485,-415.44730318,9.97e-05,2]
[328039839,1716811841494,-228.54112869,0.000129,2]
[328039841,1716811841505,-228.54112866,0.0001318,2]
[328039843,1716811841515,-291.96717459,0.00016436,2]
[328039845,1716811841523,-228.54112866,0.0001653,2]
[328039847,1716811841533,-228.54112866,0.00019879,2]
[328039849,1716811841542,-527.82833493,0.0002,4]
[328039850,1716811841551,-150.0,0.000215,2]
[328039852,1716811841566,-156.04917913,0.00021915,2]
[328039855,1716811841576,-154.98135029,0.00021915,2]
[328039857,1716811841585,-2599.89847911,0.00021915,2]
[328039858,1716811841594,-410.85900029,0.00021915,2]
[328039860,1716811841603,-551.16749439,0.00021915,2]
[328039862,1716811841615,-158.67086264,0.00021915,2]
[328039864,1716811841624,-239.00629442,0.00021915,2]
[328039866,1716811841633,-194.63259414,0.00021915,2]
[328039868,1716811841644,-1870.13098848,0.00021915,2]
[328039870,1716811841654,-1899.42263675,0.00021915,2]
[328039871,1716811841664,-720.62329532,0.00021915,2]
[328039872,1716811841674,-155.00647882,0.00021915,2]
[328039873,1716811841683,-772.8946628,0.00021915,2]
[328039874,1716811841692,-455.85517438,0.00021915,2]
[328039876,1716811841701,-395.68345474,0.00021915,2]
[328039878,1716811841710,-1325.73540606,0.00021915,2]
[328039880,1716811841721,-2636.83525359,0.00021915,2]
[328039882,1716811841731,-281.81267794,0.00021916,2]
[328039884,1716811841741,-166.666666,0.00021918,2]
[328039886,1716811841750,-7400.29852988,0.0002215,2]
[328039888,1716811841760,-500.0,0.00022413,2]
[328039890,1716811841769,-338.8833134,0.00022603,2]
[328039892,1716811841779,-204.7368025,0.00022603,2]
[328039894,1716811841788,-204.7368025,0.00022603,2]
[328039896,1716811841797,-204.7368025,0.00022603,2]
[328039898,1716811841806,-204.7368025,0.0002263,2]
[328039900,1716811841815,-204.7368025,0.0002263,2]
[328039902,1716811841824,-267.64867022,0.00022642,2]
[328039904,1716811841834,-283.73484068,0.00022835,2]
[328039906,1716811841843,-154.97857721,0.00022997,2]
[328039908,1716811841852,-39359.00600469,0.00022997,2]
[328040168,1716811846382,-836.06034281,9.999e-05,2]
[328040170,1716811846392,-685.35873137,0.00022996,2]
[328040172,1716811846402,-156.5200847,0.00022996,2]
[328040174,1716811846412,-43.47970192,0.00022996,2]
[328042745,1716812632901,4672.21742111,0.0002,15]
[328042781,1716813032526,-181.63857615,9.996e-05,2]
[328042782,1716813032541,-154.95351395,9.997e-05,2]
[328042785,1716813032556,-47.2077391,9.998e-05,2]
[328042788,1716813032574,-234.48349103,9.998e-05,2]
[328042790,1716813032589,-685.35873137,0.00018469,2]
[328042793,1716813032604,-5016.30774591,0.00018473,2]
[328043004,1716813038601,-9243.32406731,0.00018473,2]
[328043021,1716813041676,-5011.48047455,0.00018473,2]
[328043022,1716813041685,-22983.71952542,0.00018474,2]
[328043072,1716813046705,-1565.68047458,0.00018474,2]
[328043073,1716813046714,-152.36075244,0.000197,2]
[328043074,1716813046724,-179.91566355,0.000198,2]
[328043075,1716813046733,-438.0,0.0002,2]
[328043076,1716813046741,-527.82833493,0.0002,4]
[328043077,1716813046750,-196.0419245,0.00020048,2]
[328043083,1716813278513,1331.03439152,0.000275,30]
[328043096,1716813813429,2192.34403811,0.00019728,7]
[328043104,1716814069581,-156.58808866,9.351e-05,2]
[328043105,1716814069604,-685.35873137,9.351e-05,2]
[328043106,1716814069639,-6338.05317997,9.352e-05,2]
[328043129,1716814231849,-361.8150045,9.246e-05,2]
[328043131,1716814231861,-1221.44942845,9.246e-05,2]
[328043133,1716814231871,-242.00693386,9.247e-05,2]
[328043135,1716814231883,-1867.53406561,9.247e-05,2]
[328043137,1716814231893,-1902.01092962,9.247e-05,2]
[328043139,1716814231903,-2116.85616365,9.248e-05,2]
[328043141,1716814231913,-157.38876764,9.248e-05,2]
[328043143,1716814231922,-586.7560097,9.249e-05,2]
[328043145,1716814231931,-154.93802479,9.341e-05,2]
[328043147,1716814231941,-1870.54761155,9.341e-05,2]
[328043149,1716814231950,-410.95040232,9.342e-05,2]
[328043151,1716814231960,-175.80560738,9.342e-05,2]
[328043153,1716814231969,-164.30390821,9.351e-05,2]
[328043156,1716814231979,-154.93802479,9.352e-05,2]
[328043157,1716814231988,-138.37048474,9.775e-05,2]
[328043171,1716814232961,-350.06218551,9.775e-05,2]
[328043172,1716814232971,-8634.34676467,9.776e-05,2]
[328043189,1716814237808,-935.90801111,9.776e-05,2]
[328043190,1716814237818,-11070.84264273,9.777e-05,2]
[328043191,1716814237827,-476.5336738,9.899e-05,2]
[328043192,1716814237837,-1953.3989452,0.0001143,2]
[328043193,1716814237846,-187.4878752,0.00015056,2]
[328043195,1716814237855,-219.7979489,0.00017556,2]
[328043196,1716814237864,-151.0,0.00018084,3]
[328043197,1716814237873,-151.0,0.00018084,2]
[328043198,1716814237882,-151.0,0.00018902,2]
[328043199,1716814237891,-151.0,0.0001972,2]
[328043200,1716814237900,-179.91566355,0.00019946,2]
[328043201,1716814237910,-262.0,0.0002,2]
[328043202,1716814237919,-527.82833493,0.00020047,4]
[328043203,1716814237929,-19271.11228777,0.00020913,2]
[328043204,1716814237938,-179.91566355,0.00021068,2]
[328043205,1716814237947,-685.35873137,0.00021499,2]
[328043207,1716814237957,-150.0,0.000215,2]
[328043208,1716814237966,-12624.27691699,0.00021835,7]
[328043209,1716814237975,-180.0,0.00021835,2]
[328043210,1716814237985,-166.666666,0.00021918,2]
[328043211,1716814237995,-736.16220566,0.00021961,2]
[328043212,1716814238005,-179.91566355,0.0002219,2]